bitfinex-derivatives/quotes_SOLF0:USTF0_20220109
["timestamp","ask_amount","ask_price","bid_price","bid_amount"]
[1641741656927,1.9999,138.99,138.9,7.1952799]
[1641741657126,1.9999,138.99,138.91,2.0001]
[1641741657326,1.9999,138.99,138.91,6.0897416]
[1641741657726,1.9999,138.98,138.9,2.0001]
[1641741657928,1.9999,138.97,138.89,2.0001]
[1641741658128,1.9999,138.96,138.88,27.66479]
[1641741658327,1.9999,138.95,138.88,2.0001]
[1641741658526,1.9999,138.95,138.86,27.66479]
[1641741658727,1.9999,138.9,138.83,3.7991]
[1641741658930,1.9999,138.89,138.82,1.8]
[1641741659127,1.9999,138.89,138.84,4.09154017]
[1641741659331,1.9999,138.9,138.84,4.09154017]
[1641741659527,1.9999,138.94,138.84,6.09164017]
[1641741660028,29.66469,138.92,138.85,4.09154017]
[1641741660228,1.9999,138.91,138.85,4.09154017]
[1641741660431,1.9999,138.9,138.85,4.09154017]
[1641741660629,1.9999,138.96,138.87,2.0001]
[1641741660828,29.66469,138.97,138.88,2.0001]
[1641741661029,1.9999,138.97,138.87,5.815]
[1641741661531,1.9999,138.96,138.87,7.8151]
[1641741661731,1.9999,138.99,138.9,2.0001]
[1641741661943,9.19761039,139.01,138.91,2.0001]
[1641741662231,1.9999,139.0,138.92,27.66479]
[1641741662430,11.19751039,139.01,138.92,27.66479]
[1641741662630,1.9999,138.99,138.92,27.66479]
[1641741662830,9.19761039,139.01,138.92,27.66479]
[1641741663030,2.0,139.01,138.92,34.8592934]
[1641741663230,2.0,139.01,138.95,2.0001]
[1641741663431,2.0,139.01,138.95,7.217]
[1641741664031,1.9999,139.0,138.95,7.217]
[1641741664431,2.0,139.01,138.95,7.217]
[1641741664832,2.0,139.01,138.96,2.0001]
[1641741665030,2.0,139.01,138.95,7.217]
[1641741665031,2.0,139.01,139.0,2.0001]
[1641741665232,2.0,139.01,139.0,7.7491]
[1641741665631,2.0,139.01,139.0,5.749]
[1641741666935,2.0,139.01,139.0,7.7491]
[1641741667834,2.0,139.01,139.0,14.93920641]
[1641741668034,2.0,139.01,139.0,35.21179]
[1641741668234,2.0,139.01,139.0,27.66479]
[1641741668435,2.0,139.01,138.97,29.66489]
[1641741668635,2.0,139.01,138.97,27.66479]
[1641741669036,2.0,139.01,138.98,2.0001]
[1641741669234,2.0,139.01,138.97,27.66479]
[1641741669835,1.9999,138.98,138.97,27.66479]
[1641741670036,10.3279,138.98,138.97,27.66479]
[1641741670335,10.3279,138.98,138.92,7.1942446]
[1641741670536,8.328,138.98,138.92,7.1942446]
[1641741671237,8.328,138.98,138.95,2.0001]
[1641741671447,2.0,139.01,138.92,11.1942446]
[1641741671738,2.0,139.01,138.95,2.0001]
[1641741672640,2.0,139.01,138.94,27.66479]
[1641741672838,2.0,139.01,138.95,2.0001]
[1641741673939,2.0,139.01,138.94,27.66479]
[1641741674139,2.0,139.01,138.94,29.66489]
[1641741675041,1.9999,139.0,138.94,29.66489]
[1641741675342,1.9999,139.0,138.94,27.66479]
[1641741675742,1.9999,139.0,138.92,34.8590346]
[1641741675942,1.9999,139.0,138.92,36.8591346]
[1641741676842,1.9999,139.0,138.92,34.8590346]
[1641741677244,1.9999,139.0,138.92,36.8591346]
[1641741677643,1.9999,138.98,138.92,34.8590346]
[1641741677843,1.9999,138.96,138.92,7.1942446]
[1641741678043,1.9999,138.96,138.89,34.86058765]
[1641741678743,1.9999,138.96,138.9,4.09002947]
[1641741678944,1.9999,138.98,138.9,4.09002947]
[1641741679245,1.9999,138.96,138.9,4.09002947]
[1641741679646,1.9999,138.94,138.9,4.09002947]
[1641741679849,1.9999,138.93,138.9,4.09002947]
[1641741680145,1.799,138.92,138.87,36.86172339]
[1641741680444,1.799,138.94,138.87,36.86172339]
[1641741680845,1.799,138.94,138.88,4.09063356]
[1641741681246,1.799,138.94,138.88,12.54463356]
[1641741681646,1.799,138.94,138.88,14.54473356]
[1641741681849,1.799,138.97,138.9,2.0001]
[1641741682147,1.799,138.97,138.91,27.66479]
[1641741682349,15.22561952,138.98,138.93,2.0001]
[1641741682551,17.02461952,139.0,138.93,2.0001]
[1641741682748,19.02451952,139.0,138.91,36.28779]
[1641741683148,19.02451952,139.0,138.93,2.0001]
[1641741683648,1.799,139.0,138.95,2.0001]
[1641741683850,2.0,139.01,138.95,7.542]
[1641741684049,2.0,139.01,138.95,9.5421]
[1641741684249,2.0,139.01,138.97,27.66479]
[1641741684449,2.0,139.01,138.97,29.66489]
[1641741684650,0.0001,139.01,138.97,38.85644768]
[1641741684852,15.22561952,139.04,139.0,2.0001]
[1641741685052,15.22561952,139.04,139.0,5.998]
[1641741685251,13.22571952,139.04,139.0,5.998]
[1641741685650,1.9999,139.06,139.0,5.998]
[1641741685850,1.9999,139.06,139.01,2.0001]
[1641741686654,2.3655532,139.05,139.0,33.66279]
[1641741688153,2.3655532,139.05,139.01,2.0001]
[1641741688554,4.3654532,139.05,139.0,27.66479]
[1641741688755,12.7384532,139.05,138.99,2.0001]
[1641741689255,2.3655532,139.04,138.99,2.0001]
[1641741690057,2.3655532,139.05,138.97,27.66479]
[1641741690457,2.3655532,139.05,138.97,29.66489]
[1641741690658,1.9999,139.04,138.97,29.66489]
[1641741691061,2.3655532,139.05,138.97,29.66489]
[1641741692059,2.3655532,139.05,138.98,2.0001]
[1641741692260,2.3655532,139.05,138.98,10.7751]
[1641741693060,2.3655532,139.05,138.98,8.775]
[1641741693260,2.3655532,139.05,139.04,2.0001]
[1641741693560,2.3655532,139.05,139.04,8.528]
[1641741694359,2.0,139.06,139.04,10.5281]
[1641741694560,2.0,139.06,139.05,27.66479]
[1641741694760,0.0001,139.06,139.05,29.66489]
[1641741694961,39.68684636,139.1,139.05,29.66489]
[1641741695263,7.69339429,139.11,139.05,27.66479]
[1641741695461,7.69339429,139.11,139.07,2.0001]
[1641741695861,39.68684636,139.12,139.07,2.0001]
[1641741696062,39.68684636,139.14,139.07,2.0001]
[1641741696262,39.68684636,139.14,139.07,7.685]
[1641741696762,20.43141844,139.13,139.08,2.0001]
[1641741696965,20.43141844,139.13,139.09,2.0001]
[1641741697363,20.43141844,139.13,139.07,7.685]
[1641741697562,20.43141844,139.13,139.07,9.6851]
[1641741697766,20.43141844,139.14,139.07,9.6851]
[1641741699067,3.9999,139.13,139.07,7.685]
[1641741699367,2.0,139.13,139.03,98.04479]
[1641741699567,20.43141844,139.12,138.99,2.0001]
[1641741699767,1.9999,139.09,138.99,2.0001]
[1641741699967,1.9999,139.09,138.99,7.19062343]
[1641741700168,1.9999,139.09,139.0,6.08694293]
[1641741700370,39.68684636,139.11,139.0,6.08694293]
[1641741700668,1.9999,139.06,139.0,27.66479]
[1641741701269,9.24,139.09,139.0,29.66489]
[1641741701471,1.9999,139.09,139.0,29.66489]
[1641741701668,1.9999,139.09,139.01,2.0001]
[1641741702069,29.66469,139.1,139.01,2.0001]
[1641741702271,29.66469,139.1,139.0,27.66479]
[1641741702771,20.43566146,139.09,139.0,27.66479]
[1641741703171,29.66469,139.1,139.01,2.0001]
[1641741703471,29.66469,139.1,139.0,27.66479]
[1641741703472,1.9999,139.09,139.0,27.66479]
[1641741703671,22.43578704,139.09,139.01,2.0001]
[1641741703871,22.43578704,139.09,139.0,27.66479]
[1641741704070,20.43588704,139.09,139.02,2.0001]
[1641741704272,27.66479,139.1,139.02,2.0001]
[1641741705072,27.66479,139.1,139.04,2.0001]
[1641741705272,27.66479,139.1,139.06,2.0001]
[1641741705474,39.68684636,139.12,139.06,2.0001]
[1641741705772,2.0,139.13,139.06,2.0001]
[1641741706172,2.0,139.13,139.06,8.896]
[1641741706372,2.0,139.13,139.08,2.0001]
[1641741706574,2.0,139.13,139.07,27.66479]
[1641741706773,2.0,139.13,139.04,2.0001]
[1641741706972,20.43236701,139.12,139.03,2.0001]
[1641741707171,20.43236701,139.12,139.01,70.6273]
[1641741707373,20.43236701,139.12,139.02,7.18933103]
[1641741707578,1.9999,139.07,139.01,1.797]
[1641741707773,11.0399,139.07,139.01,1.797]
[1641741707974,9.04,139.07,139.01,1.797]
[1641741708373,9.04,139.07,139.01,3.7971]
[1641741708573,9.04,139.07,139.01,31.46189]
[1641741708773,9.04,139.07,139.01,29.46179]
[1641741708973,9.04,139.07,139.01,31.46189]
[1641741709374,9.04,139.07,139.01,3.7971]
[1641741709775,11.0399,139.07,139.01,1.797]
[1641741709977,1.9999,139.03,138.95,2.0001]
[1641741710175,6.518,139.03,138.96,2.0001]
[1641741710677,34.18279,139.03,138.97,2.0001]
[1641741710876,6.518,139.03,138.98,2.0001]
[1641741711076,27.66479,139.05,138.98,9.9751]
[1641741711279,39.68684636,139.07,138.98,7.975]
[1641741711478,1.9999,139.06,138.98,7.975]
[1641741711676,1.9999,139.04,138.98,7.975]
[1641741711877,1.9999,139.05,138.98,7.975]
[1641741712277,1.9999,139.05,138.94,27.66479]
[1641741712278,1.9999,139.03,138.94,27.66479]
[1641741712479,1.9999,139.04,138.96,2.0001]
[1641741712779,27.66479,139.06,138.96,2.0001]
[1641741712979,27.66479,139.06,138.98,2.0001]
[1641741713480,39.68684636,139.07,138.99,2.0001]
[1641741713679,39.68684636,139.07,138.99,11.2981]
[1641741713880,1.9999,139.08,138.99,11.2981]
[1641741714079,1.9999,139.08,138.99,9.298]
[1641741715080,29.66469,139.09,138.99,11.2981]
[1641741715381,15.24974882,139.06,138.99,9.298]
[1641741716281,15.24974882,139.07,138.99,9.298]
[1641741716482,15.24974882,139.07,139.0,2.0001]
[1641741717082,15.24974882,139.06,139.0,2.0001]
[1641741717283,15.24974882,139.06,138.98,27.66479]
[1641741717881,17.24974882,139.06,138.98,27.66479]
[1641741718486,1.9999,139.05,138.98,27.66479]
[1641741719284,17.24964882,139.05,138.99,2.0001]
[1641741719485,17.24964882,139.05,138.98,27.66479]
[1641741719986,1.9999,139.05,138.98,27.66479]
[1641741720587,1.9999,139.05,138.99,2.0001]
[1641741721189,1.9999,139.05,138.98,27.66479]
[1641741721391,1.9999,139.04,138.96,2.0001]
[1641741721591,1.9999,139.01,138.95,68.0876]
[1641741721791,8.6149,139.01,138.91,22.44476987]
[1641741721991,1.9999,139.0,138.94,2.0001]
[1641741722191,6.615,139.01,138.94,2.0001]
[1641741722391,8.6149,139.01,138.94,2.0001]
[1641741722990,27.66479,139.0,138.94,2.0001]
[1641741723394,1.9999,138.98,138.94,2.0001]
[1641741723593,9.6669,138.98,138.94,2.0001]
[1641741723794,7.667,138.98,138.91,27.66479]
[1641741723994,7.667,138.98,138.97,2.0001]
[1641741724193,15.24974882,139.0,138.97,8.877]
[1641741724892,1.9999,139.0,138.97,8.877]
[1641741725092,27.66479,138.98,138.94,2.0001]
[1641741725292,29.66469,139.01,138.94,2.0001]
[1641741725693,44.91443882,139.01,138.94,2.0001]
[1641741725892,44.91443882,139.01,138.91,27.66479]
[1641741726093,17.24964882,139.01,138.91,27.66479]
[1641741726295,15.24974882,139.01,138.95,2.0001]
[1641741727193,15.24974882,139.01,138.94,27.66479]
[1641741727395,15.24974882,139.03,138.95,2.0001]
[1641741728298,17.24964882,139.03,138.95,2.0001]
[1641741728495,1.9999,139.01,138.94,27.66479]
[1641741728696,1.9999,139.01,138.95,2.0001]
[1641741729098,15.24974882,139.02,138.95,2.0001]
[1641741729296,15.24974882,139.02,138.94,27.66479]
[1641741729498,15.24974882,139.02,138.96,2.0001]
[1641741730199,15.24974882,139.02,138.94,27.66479]
[1641741730503,1.9999,139.0,138.94,2.0001]
[1641741730699,1.9999,138.98,138.94,2.0001]
[1641741730902,1.9999,138.97,138.94,2.0001]
[1641741731101,8.95,138.97,138.94,2.0001]
[1641741731303,27.66479,138.95,138.94,2.0001]
[1641741731902,27.66479,138.95,138.89,19.24974882]
[1641741731903,29.66469,138.95,138.9,2.0001]
[1641741732102,27.66479,138.95,138.89,17.24984882]
[1641741732301,29.66469,138.95,138.89,2.0001]
[1641741732502,27.66479,138.95,138.87,67.4848]
[1641741732701,27.66479,138.95,138.86,42.91453882]
[1641741732902,27.66479,138.95,138.88,4.08998627]
[1641741733103,27.66479,138.95,138.89,2.0001]
[1641741733502,29.66469,138.95,138.89,2.0001]
[1641741733903,27.66479,138.95,138.86,27.66479]
[1641741734304,27.66479,138.95,138.9,2.0001]
[1641741735104,15.24974882,138.99,138.94,2.0001]
[1641741735303,15.24974882,138.99,138.94,6.109]
[1641741735906,1.9999,138.98,138.94,6.109]
[1641741736107,1.9999,138.99,138.94,6.109]
[1641741736306,10.5339,139.0,138.92,2.0001]
[1641741736507,8.534,139.0,138.93,2.0001]
[1641741736706,15.24974882,139.01,138.93,10.1301]
[1641741736908,15.24974882,139.01,138.93,12.21875991]
[1641741737107,15.24974882,139.01,138.96,2.0001]
[1641741737306,15.24974882,139.01,138.94,4.08875991]
[1641741737506,15.24974882,139.01,138.94,31.75354991]
[1641741737707,2.3660947,139.01,138.94,33.75364991]
[1641741737907,2.3660947,139.01,138.94,31.75354991]
[1641741738208,2.3660947,139.01,138.95,2.0001]
[1641741739710,2.3660947,139.01,138.94,27.66479]
[1641741741512,17.61584352,139.01,138.94,27.66479]
[1641741742115,1.9999,139.0,138.94,27.66479]
[1641741742314,1.9999,138.99,138.9,72.562]
[1641741742714,15.74028756,139.0,138.91,4.08940479]
[1641741743114,2.3660947,138.98,138.91,4.08940479]
[1641741743314,4.3659947,138.98,138.91,4.08940479]
[1641741743713,4.3659947,138.98,138.9,100.22679]
[1641741743916,4.3659947,138.97,138.9,100.22679]
[1641741744214,2.3660947,138.97,138.9,100.22679]
[1641741744416,1.9999,138.96,138.9,98.22669]
[1641741744717,1.9999,138.96,138.9,70.5619]
[1641741745616,2.36941375,138.95,138.9,70.5619]
[1641741746018,2.36941375,138.95,138.93,2.0001]
[1641741746619,1.9999,138.98,138.89,2.0001]
[1641741746825,5.859,138.95,138.89,2.0001]
[1641741747222,5.859,138.95,138.9,4.08972774]
[1641741747621,5.859,138.95,138.91,2.0001]
[1641741747822,2.0,138.95,138.9,4.08972774]
[1641741748020,2.0,138.95,138.88,27.66479]
[1641741748021,2.0,138.95,138.93,2.0001]
[1641741750425,2.0,138.95,138.92,27.66479]
[1641741750625,2.0,138.95,138.93,2.0001]
[1641741751525,2.0,138.95,138.92,27.66479]
[1641741751726,2.0,138.95,138.93,2.0001]
[1641741752827,2.0,138.95,138.92,27.66479]
[1641741755535,2.0,138.95,138.92,29.66489]
[1641741755737,2.0,138.95,138.94,2.0001]
[1641741756337,2.0,138.95,138.92,27.66479]
[1641741756540,2.0,138.95,138.93,2.0001]
[1641741756940,2.0,138.95,138.94,4.08877912]
[1641741757239,2.0,138.95,138.93,4.72256139]
[1641741757439,2.0,138.95,138.93,2.72246139]
[1641741757840,2.0,138.95,138.92,27.66479]
[1641741758039,2.0,138.95,138.93,2.0001]
[1641741758440,2.0,138.95,138.94,2.0001]
[1641741758642,15.24974882,139.01,138.94,6.0888196]
[1641741758843,15.24974882,139.01,138.97,2.0001]
[1641741759042,13.24974882,139.02,138.97,8.9951]
[1641741759445,13.24974882,139.02,138.97,6.995]
[1641741759643,13.24974882,139.02,138.97,36.65989]
[1641741759844,2.37188037,139.03,138.97,36.65989]
[1641741760044,2.37188037,139.04,138.97,34.65979]
[1641741760449,2.37188037,139.04,138.97,45.85144768]
[1641741760645,2.37188037,139.04,139.02,2.0001]
[1641741760843,2.37188037,139.04,139.01,2.0001]
[1641741761047,2.37188037,139.07,139.01,2.0001]
[1641741761646,2.37188037,139.07,138.98,2.71700822]
[1641741761846,2.37188037,139.07,139.02,2.0001]
[1641741762247,2.37188037,139.07,138.99,4.08712257]
[1641741762248,2.37188037,139.07,139.01,2.0001]
[1641741762447,2.37188037,139.07,139.02,2.0001]
[1641741762650,4.37188037,139.07,139.02,2.0001]
[1641741762847,4.37188037,139.07,138.98,4.0]
[1641741763051,2.0,139.07,138.97,61.12758]
[1641741763248,2.0,139.07,138.99,4.08688881]
[1641741763448,2.0,139.07,138.99,8.08688881]
[1641741763648,2.0,139.07,139.04,27.66479]
[1641741763849,2.0,139.07,139.05,2.0001]
[1641741764049,2.0,139.07,139.04,27.66479]
[1641741764750,2.0,139.07,139.05,2.0001]
[1641741767456,2.0,139.07,139.04,27.66479]
[1641741767857,2.0,139.07,139.06,2.0001]
[1641741769260,2.0,139.07,139.04,27.66479]
[1641741769462,9.204,139.07,138.99,1.797]
[1641741769661,9.204,139.07,139.0,2.0001]
[1641741770460,11.2039,139.07,139.0,2.0001]
[1641741770662,9.204,139.07,138.98,27.66479]
[1641741770864,9.204,139.07,139.0,2.0001]
[1641741771064,1.9999,139.04,139.0,2.0001]
[1641741771265,7.223,139.04,138.96,95.61069]
[1641741771467,7.223,139.04,138.97,2.0001]
[1641741771863,7.223,139.04,138.98,4.0871698]
[1641741772465,9.2229,139.04,138.98,4.0871698]
[1641741772666,7.223,139.04,138.98,4.0871698]
[1641741773469,9.2229,139.04,138.98,6.0872698]
[1641741773668,7.223,139.04,138.98,2.0001]
[1641741774268,9.2229,139.04,138.98,2.0001]
[1641741775071,1.9999,139.02,138.93,92.31549]
[1641741775273,1.9999,139.03,138.94,2.0001]
[1641741775772,1.9999,139.03,138.95,4.08816587]
[1641741776172,1.9999,139.03,138.95,6.08826587]
[1641741776372,34.88779,139.04,138.97,2.0001]
[1641741776574,27.66479,139.04,138.97,2.0001]
[1641741776973,27.66479,139.04,138.98,4.08816587]
[1641741777774,2.0,139.03,138.98,4.08816587]
[1641741778776,2.0,139.03,138.98,6.08826587]
[1641741779177,2.0,139.03,138.98,2.0001]
[1641741779578,2.0,139.03,138.93,92.31549]
[1641741779977,2.0,139.03,138.96,27.66479]
[1641741780179,3.9999,139.03,138.97,2.0001]
[1641741780383,2.0,139.03,138.97,2.0001]
[1641741780679,2.0,139.03,138.96,27.66479]
[1641741781279,2.0,139.03,138.97,4.08771641]
[1641741782278,2.0,139.03,138.97,6.08781641]
[1641741782682,2.0,139.03,138.97,11.27937409]
[1641741782879,39.68684636,139.09,139.02,2.0001]
[1641741783179,39.68684636,139.09,139.07,2.0001]
[1641741783382,39.68684636,139.09,139.07,6.366]
[1641741783681,2.36479298,139.12,139.07,6.366]
[1641741784079,0.36489298,139.12,139.07,6.366]
[1641741784779,1.9999,139.13,139.07,6.366]
[1641741785380,1.9999,139.13,139.06,27.66479]
[1641741785780,1.9999,139.14,139.06,27.66479]
[1641741785981,1.9999,139.14,139.07,2.0001]
[1641741786383,1.9999,139.13,139.06,27.66479]
[1641741787183,1.9999,139.13,139.07,2.0001]
[1641741787482,9.69238921,139.14,139.07,2.0001]
[1641741787483,11.69228921,139.14,139.07,7.705]
[1641741787683,2.0,139.12,139.07,11.78947974]
[1641741787885,2.0,139.12,139.09,2.0001]
[1641741788282,2.0,139.12,139.07,11.78947974]
[1641741788482,2.0,139.12,139.1,2.0001]
[1641741789284,2.0,139.12,139.11,2.0001]
[1641741789485,2.0,139.12,139.06,27.66479]
[1641741790084,2.0,139.12,139.07,4.0843489]
[1641741790686,2.0,139.12,139.11,2.0001]
[1641741791089,2.0,139.12,139.07,4.0843489]
[1641741791390,11.123,139.12,139.07,2.0001]
[1641741792488,11.123,139.12,139.04,27.66479]
[1641741793290,11.123,139.12,139.08,2.0001]
[1641741793490,2.0,139.12,139.08,2.0001]
[1641741793891,2.0,139.12,139.04,31.66479]
[1641741794390,2.0,139.12,139.08,2.0001]
[1641741795492,2.0,139.12,139.07,27.66479]
[1641741796092,2.0,139.12,139.08,2.0001]
[1641741796494,2.0,139.12,139.07,27.66479]
[1641741797793,2.0,139.12,139.09,2.0001]
[1641741797993,2.0,139.12,139.08,2.0001]
[1641741798193,2.0,139.12,139.09,2.0001]
[1641741798795,2.0,139.12,139.09,8.495]
[1641741799295,2.0,139.12,139.1,2.0001]
[1641741801496,2.0,139.12,139.07,102.60719]
[1641741801895,2.0,139.12,139.08,4.08433916]
[1641741802297,2.0,139.12,139.11,2.0001]
[1641741802896,15.22545399,139.19,139.11,2.0001]
[1641741803096,15.22545399,139.19,139.1,36.77379]
[1641741803296,15.22545399,139.19,139.14,2.0001]
[1641741803497,13.22545399,139.19,139.15,2.0001]
[1641741803698,1.9999,139.2,139.15,2.0001]
[1641741804300,1.9999,139.19,139.13,2.0001]
[1641741804696,29.66469,139.2,139.13,2.0001]
[1641741805296,1.9999,139.18,139.12,2.0001]
[1641741805497,1.9999,139.17,139.12,2.0001]
[1641741805699,10.6969,139.17,139.12,2.0001]
[1641741805897,8.697,139.17,139.11,2.0001]
[1641741806597,8.697,139.17,139.12,2.0001]
[1641741806800,29.66469,139.2,139.12,2.0001]
[1641741806997,2.0,139.17,139.12,2.0001]
[1641741807198,2.0,139.17,139.1,27.66479]
[1641741807998,2.0,139.17,139.11,4.08372712]
[1641741808199,2.0,139.17,139.12,2.0001]
[1641741808600,2.0,139.17,139.11,8.325]
[1641741809703,2.0,139.17,139.1,27.66479]
[1641741810105,2.0,139.17,139.16,2.0001]
[1641741810304,39.68684636,139.23,139.16,8.1691]
[1641741810507,39.68684636,139.23,139.18,29.66489]
[1641741810706,37.68694636,139.23,139.18,29.66489]
[1641741811107,27.66479,139.26,139.18,29.66489]
[1641741811310,9.6634383,139.25,139.18,2.0001]
[1641741811508,9.6634383,139.25,139.18,8.7101]
[1641741811909,9.6634383,139.25,139.18,6.71]
[1641741812310,29.66469,139.26,139.18,6.71]
[1641741812506,1.9999,139.25,139.18,8.7101]
[1641741812709,29.66469,139.26,139.18,8.7101]
[1641741812907,9.6634383,139.25,139.18,8.7101]
[1641741814109,9.6634383,139.25,139.18,0.0001]
[1641741814311,22.8743383,139.25,139.18,0.0001]
[1641741814711,20.8743383,139.25,139.18,0.0001]
[1641741815012,16.8744383,139.25,139.16,67.983]
[1641741815911,20.8743383,139.25,139.16,67.983]
[1641741817715,3.9999,139.23,139.16,67.983]
[1641741818014,3.9999,139.22,139.16,67.983]
[1641741818313,10.9929,139.22,139.15,27.66479]
[1641741818514,27.66479,139.2,139.15,27.66479]
[1641741818715,3.9999,139.23,139.15,27.66479]
[1641741818914,3.9999,139.22,139.15,27.66479]
[1641741819114,3.9999,139.23,139.15,27.66479]
[1641741819515,3.9999,139.23,139.15,35.79079]
[1641741820219,13.6633383,139.25,139.15,35.79079]
[1641741820618,3.9999,139.24,139.15,35.79079]
[1641741821017,3.9999,139.23,139.15,35.79079]
[1641741821817,9.6634383,139.25,139.15,35.79079]
[1641741822018,9.6634383,139.25,139.15,39.79079]
[1641741822218,9.6634383,139.25,139.16,4.0]
[1641741822416,9.6634383,139.25,139.16,8.08204654]
[1641741822616,9.6634383,139.25,139.19,27.66479]
[1641741822819,9.6634383,139.25,139.19,35.48379]
[1641741823018,2.0,139.25,139.19,35.48379]
[1641741825221,2.0,139.25,139.2,4.08111923]
[1641741825422,2.0,139.25,139.21,4.0]
[1641741825620,2.0,139.25,139.2,4.08111923]
[1641741826222,7.18236012,139.31,139.21,4.0]
[1641741826423,7.18236012,139.31,139.22,4.0]
[1641741826623,7.18236012,139.31,139.27,27.66479]
[1641741826824,0.35678631,139.3,139.27,27.66479]
[1641741827524,0.35678631,139.3,139.24,27.66479]
[1641741829727,9.58878631,139.3,139.24,27.66479]
[1641741830330,11.58878631,139.3,139.24,27.66479]
[1641741830732,11.232,139.3,139.24,27.66479]
[1641741831632,11.232,139.3,139.22,68.7137]
[1641741835840,3.9999,139.29,139.22,68.7137]
[1641741836038,3.9999,139.28,139.17,11.18132855]
[1641741836239,3.9999,139.29,139.18,68.8591]
[1641741836440,3.9999,139.26,139.18,68.8591]
[1641741836742,27.66479,139.25,139.18,68.8591]
[1641741837340,27.66479,139.27,139.18,68.8591]
[1641741837539,27.66479,139.27,139.19,4.08145221]
[1641741838343,17.1692597,139.29,139.19,4.08145221]
[1641741838743,17.1692597,139.29,139.2,27.66479]
[1641741838944,17.1692597,139.29,139.22,4.0]
[1641741839143,17.1692597,139.29,139.23,4.0]
[1641741839345,17.1692597,139.29,139.23,4.08145221]
[1641741839545,17.1692597,139.29,139.23,8.08145221]
[1641741839845,17.1692597,139.29,139.23,4.08145221]
[1641741840045,2.0,139.29,139.23,4.08145221]
[1641741840644,2.0,139.29,139.21,4.08145221]
[1641741841044,11.157,139.29,139.21,4.08145221]
[1641741841445,15.1569,139.29,139.21,4.08145221]
[1641741841945,3.9999,139.27,139.21,4.08145221]
[1641741842147,3.9999,139.26,139.21,4.08145221]
[1641741842346,11.8959,139.26,139.21,4.08145221]
[1641741842748,3.9999,139.25,139.19,4.08145221]
[1641741842946,3.9999,139.24,139.19,4.08145221]
[1641741843246,31.66469,139.25,139.16,42.8340497]
[1641741843549,31.66469,139.25,139.16,27.66479]
[1641741843746,3.9999,139.2,139.17,4.08154926]
[1641741843946,10.8499,139.2,139.17,4.08154926]
[1641741844145,10.8499,139.2,139.16,4.08154926]
[1641741844545,10.8499,139.2,139.14,15.1692597]
[1641741845246,10.8499,139.2,139.12,27.66479]
[1641741845746,10.8499,139.2,139.13,4.08245067]
[1641741845945,3.9999,139.17,139.13,4.08245067]
[1641741846148,3.9999,139.15,139.1,15.1692597]
[1641741846345,3.9999,139.14,139.11,15.1692597]
[1641741846546,10.9329,139.14,139.11,15.1692597]
[1641741846745,3.9999,139.13,139.11,15.1692597]
[1641741846945,27.66479,139.12,139.11,15.1692597]
[1641741847146,27.66479,139.13,139.11,15.1692597]
[1641741847346,27.66479,139.13,139.04,42.8340497]
[1641741847545,1.12319491,139.12,139.04,42.8340497]
[1641741847945,1.12319491,139.12,139.05,4.0837337]
[1641741848347,1.12319491,139.12,139.06,11.18700589]
[1641741848547,1.12319491,139.12,139.07,4.0]
[1641741848747,1.12319491,139.12,139.07,18.17874764]
[1641741848948,1.12319491,139.17,139.07,22.26248134]
[1641741849148,1.12319491,139.17,139.11,27.66479]
[1641741849348,1.12319491,139.16,139.11,27.66479]
[1641741849848,3.9999,139.19,139.12,4.0837337]
[1641741849849,1.12319491,139.15,139.12,4.0837337]
[1641741850248,1.12319491,139.14,139.12,4.0837337]